lending/lending_fUSD_20240110
["ID","MTS","AMOUNT","RATE_DAILY","PERIOD"]
[311004691,1704856034201,-1081.71278287,0.00022511,2]
[311004692,1704856054411,394.94,0.00021944,2]
[311004707,1704856195859,515.58,0.00021948,2]
[311004716,1704856231686,-153.12931415,0.00022511,2]
[311004717,1704856231696,-863.25069185,0.00022511,2]
[311004718,1704856231743,-1540.53311264,0.00022511,2]
[311004719,1704856231752,-170.16427456,0.00022518,2]
[311004720,1704856231762,-170.16427445,0.00022538,2]
[311004721,1704856231771,-405.0,0.00022542,2]
[311004723,1704856231780,-170.16427445,0.00022558,2]
[311004725,1704856231790,-170.16427445,0.00022578,2]
[311004727,1704856231799,-170.16427445,0.00022598,2]
[311004728,1704856231809,-377.32300898,0.00022618,2]
[311004731,1704856231821,-205.31699102,0.00022618,2]
[311004732,1704856231831,-170.16427445,0.00022619,2]
[311004733,1704856231840,-170.16427445,0.00022639,2]
[311004734,1704856231850,-582.64,0.00022734,2]
[311004735,1704856231859,-150.0,0.00022798,2]
[311004736,1704856231869,-297.71446008,0.00022799,2]
[311004737,1704856231894,-58.08093992,0.00022799,2]
[311004738,1704856231903,-221.91906008,0.00022799,2]
[311004739,1704856231927,-2237.6,0.00022799,2]
[311004740,1704856231943,-378.44094283,0.00022799,2]
[311004741,1704856231958,-1939.33175022,0.00022799,2]
[311004742,1704856231974,-6464.77979811,0.00022799,2]
[311004743,1704856231993,-2571.16321385,0.00022799,2]
[311004744,1704856232005,-2638.98493491,0.00022799,2]
[311004745,1704856232014,-1007.52649496,0.00022799,2]
[311004790,1704856237737,-170.16427445,0.00022659,2]
[311004791,1704856237747,-1492.47350504,0.00022799,2]
[311004792,1704856237756,-729.18813093,0.000228,2]
[311004793,1704856237794,-170.16427445,0.00022679,2]
[311004794,1704856237803,-270.81186907,0.000228,2]
[311004795,1704856237813,-330.12,0.00022824,2]
[311004796,1704856237823,-150.99,0.00022824,2]
[311004797,1704856237833,-16405.36,0.00022824,2]
[311004798,1704856237842,-150.99,0.00022824,2]
[311004799,1704856237852,-1973.7,0.0002285,2]
[311004800,1704856237862,-645.83,0.0002285,2]
[311004801,1704856237871,-4759.26892123,0.0002285,2]
[311004802,1704856237888,-643.1294748,0.0002285,2]
[311004803,1704856237905,-2391.25160397,0.0002285,2]
[311004804,1704856237915,-499.99,0.0002285,2]
[311004805,1704856237924,-582.64,0.0002285,2]
[311004806,1704856237934,-598.1247,0.00022886,2]
[311004807,1704856237944,-176.45988349,0.00022894,2]
[311004808,1704856237955,-225.77778981,0.00022894,2]
[311004809,1704856237965,-548.63392331,0.00022894,2]
[311004810,1704856237978,-155.0,0.00022894,2]
[311004811,1704856237987,-190.72179871,0.00022894,2]
[311004812,1704856237997,-212.61790539,0.00022894,2]
[311004813,1704856238007,-163.19,0.00022895,2]
[311004814,1704856238017,-1153.86,0.00022896,2]
[311004815,1704856238027,-726.06,0.00022896,2]
[311004816,1704856238039,-718.52,0.00022896,2]
[311004817,1704856238049,-720.09,0.00022898,2]
[311004818,1704856238060,-717.13,0.00022898,2]
[311004819,1704856238070,-718.84,0.00022898,2]
[311004820,1704856238085,-3365.74071448,0.00022899,2]
[311004821,1704856238097,-60621.59688919,0.00022899,2]
[311004822,1704856238122,-4906.23264509,0.00022899,2]
[311004823,1704856238136,-72844.04755124,0.00022899,2]
[311004824,1704856238146,-1300.116,0.00022899,2]
[311004825,1704856238156,-484.8619,0.00022899,2]
[311004826,1704856238169,-163.8328,0.00022899,2]
[311004827,1704856238179,-19175.3745,0.00022899,2]
[311004828,1704856238189,-19881.8857,0.00022899,2]
[311004829,1704856238198,-729.63,0.000229,2]
[311004830,1704856238208,-23542.15340548,0.000229,2]
[311004831,1704856238217,-307.03144744,0.000229,2]
[311004832,1704856238227,-154.67317192,0.000229,2]
[311004833,1704856238237,-501.28063989,0.000229,2]
[311004836,1704856238247,-373.77079332,0.000229,2]
[311004839,1704856238257,-421.629382,0.000229,2]
[311004842,1704856238268,-982.2828169,0.000229,2]
[311004845,1704856238279,-167.8236252,0.000229,2]
[311004848,1704856238291,-394.94,0.00022923,2]
[311004851,1704856238302,-582.64,0.00022966,2]
[311004853,1704856238313,-313.79367498,0.00022998,2]
[311004855,1704856238323,-155.46930835,0.00022998,2]
[311004876,1704856238501,-156.40014034,0.00022998,2]
[311004878,1704856238511,-248.83539254,0.00022998,2]
[311004880,1704856238520,-318.17700689,0.00022998,2]
[311004882,1704856238528,-155.0,0.00022998,2]
[311004884,1704856238540,-155.0,0.00022998,2]
[311004886,1704856238549,-155.0,0.00022999,2]
[311004888,1704856238558,-7379.31109911,0.00022999,2]
[311004890,1704856238567,-126943.59212976,0.00022999,2]
[311004892,1704856238576,-150.0,0.00022999,2]
[311004894,1704856238586,-150.0,0.00022999,2]
[311004896,1704856238595,-299288.98407721,0.00023,2]
[311004898,1704856238607,-420.45332502,0.00023,2]
[311004900,1704856238617,-4999.15470271,0.00023,2]
[311004903,1704856238628,-404.64145571,0.00023,2]
[311004907,1704856238662,-5065.54090641,0.00023,2]
[311004915,1704856240211,-299.1128838,0.00023,2]
[311004916,1704856240269,-1675.47503332,0.00023,2]
[311004917,1704856240327,-272.65594049,0.00023,2]
[311004918,1704856240887,-401.7207236,0.00023,2]
[311005011,1704856245958,-170.16427445,0.00022699,2]
[311005013,1704856245968,-142863.6357247,0.00023,2]
[311005014,1704856270370,800.0,0.000226,8]
[311005015,1704856272503,1600.0,0.000227,8]
[311005017,1704856274589,2400.0,0.000228,8]
[311005018,1704856276681,3300.0,0.000229,8]
[311005019,1704856281509,393.15,0.00020503,2]
[311005021,1704856306293,162.33,0.00022214,2]
[311005024,1704856369897,155.26279656,0.00022214,2]
[311005025,1704856378158,223.3,0.00021896,2]
[311005026,1704856495511,424.51,0.00021795,2]
[311005027,1704856521998,250.0,0.00022,2]
[311005028,1704856630233,152.61,0.00021772,2]
[311005029,1704856630432,152.61,0.00022207,2]
[311005030,1704856657991,587.53,0.00021776,2]
[311005031,1704856713304,373.49,0.00019856,2]
[311005032,1704856713378,373.49,0.0002212,2]
[311005033,1704856756375,-1410.2166,0.00037165,30]
[311005034,1704856756399,-500.0,0.00037165,120]
[311005035,1704856756422,-160.95356887,0.00037165,120]
[311005036,1704856756444,-3191.09694549,0.00037165,30]
[311005037,1704856756473,-425.39962953,0.00037165,120]
[311005038,1704856756496,-163.4997591,0.00037165,30]
[311005039,1704856756518,-27491.3174297,0.00037165,30]
[311005040,1704856756541,-4197.7410506,0.00037165,120]
[311005041,1704856756563,-165.08306559,0.00037165,120]
[311005042,1704856756585,-3941.51283908,0.00037165,120]
[311005043,1704856756607,-12207.57315367,0.00037165,120]
[311005044,1704856756630,-553.97923043,0.00037165,60]
[311005045,1704856756652,-157.11431411,0.00037165,120]
[311005046,1704856756674,-546.23774761,0.00037165,120]
[311005047,1704856756697,-293.6695992,0.00037165,120]
[311005048,1704856756720,-5255.01904711,0.00037165,120]
[311005049,1704856756743,-256.69433007,0.00037165,30]
[311005050,1704856756766,-50395.08980081,0.00037165,120]
[311005051,1704856756788,-192.42856765,0.00037165,120]
[311005052,1704856756811,-756.0,0.00037165,120]
[311005053,1704856756833,-1797.07142343,0.00037165,120]
[311005054,1704856756856,-4809.44578967,0.00037165,30]
[311005055,1704856756879,-4627.29919748,0.00037165,30]
[311005056,1704856756902,-1630.23525262,0.00037165,120]
[311005057,1704856756924,-1288.9208288,0.00037165,30]
[311005058,1704856756946,-183.26342474,0.00037165,30]
[311005059,1704856756969,-1965.990009,0.00037165,30]
[311005060,1704856756992,-150.0,0.00037165,30]
[311005061,1704856757015,-150.0,0.00037165,30]
[311005062,1704856757038,-150.0,0.00037165,30]
[311005063,1704856757061,-150.0,0.00037165,30]
[311005064,1704856757084,-150.0,0.00037165,30]
[311005065,1704856757107,-250.0,0.00037165,30]
[311005066,1704856757130,-1932.752725,0.00037165,30]
[311005067,1704856757153,-254.02246594,0.00037165,120]
[311005068,1704856757176,-304.949637,0.00037165,30]
[311005069,1704856761069,-151.0,0.00030859,120]
[311005070,1704856761096,-151.0,0.00031489,30]
[311005071,1704856761133,-150.0,0.00032877,30]
[311005072,1704856761169,-201.0,0.000338,120]
[311005073,1704856761198,-150.0,0.00033936,30]
[311005074,1704856761225,-600.0,0.00034,35]
[311005075,1704856761255,-600.0,0.00035,36]
[311005076,1704856761282,-150.0,0.00035225,30]
[311005077,1704856761308,-1036839.0,0.00035226,30]
[311005078,1704856761332,-157.61512675,0.000355,30]
[311005079,1704856761356,-170.07205982,0.00035615,30]
[311005080,1704856761393,-500.0,0.00035616,30]
[311005081,1704856761479,-1021.37554692,0.00035616,30]
[311005082,1704856761519,-500.0,0.0003589,30]
[311005083,1704856761607,-600.0,0.00036,37]
[311005084,1704856761638,-500.0,0.00036164,30]
[311005085,1704856761721,-208.0,0.000362,120]
[311005086,1704856761749,-150.50298336,0.0003623,30]
[311005087,1704856761781,-500.0,0.00036438,30]
[311005088,1704856761859,-167.51,0.00036438,46]
[311005089,1704856761883,-167.51,0.00036438,90]
[311005090,1704856761911,-500.0,0.00036712,30]
[311005091,1704856762267,-500.0,0.00036986,30]
[311005092,1704856762363,-218.16731959,0.00037,30]
[311005093,1704856762387,-600.0,0.00037,38]
[311005094,1704856762410,-353.02431632,0.00037,120]
[311005095,1704856762438,-500.0,0.0003726,30]
[311005096,1704856762515,-500.0,0.00037534,30]
[311005097,1704856762587,-500.0,0.00037808,30]
[311005098,1704856762656,-5400.0,0.00038,30]
[311005099,1704856762680,-5000.0,0.00038,30]
[311005100,1704856762704,-600.0,0.00038,39]
[311005101,1704856762731,-514.64946199,0.00038082,30]
[311005102,1704856762796,-500.0,0.000381,60]
[311005103,1704856762905,-14987.45308177,0.000388,30]
[311005104,1704856762970,-600.0,0.00039,40]
[311005105,1704856762998,-277.95388873,0.00039,40]
[311005106,1704856763068,-1208.0,0.00039407,30]
[311005107,1704856763177,-10000.0,0.0004,30]
[311005108,1704856763205,-10000.0,0.0004,30]
[311005109,1704856763232,-600.0,0.0004,41]
[311005110,1704856763261,-54276.05,0.0004,30]
[311005111,1704856763287,-1000.0,0.0004,30]
[311005112,1704856763312,-249.26585059,0.0004,120]
[311005113,1704856763338,-202.14051626,0.0004,30]
[311005114,1704856763363,-5000.0,0.0004,30]
[311005115,1704856763388,-4849.0,0.0004,30]
[311005116,1704856763413,-807.0,0.0004,30]
[311005117,1704856763438,-101648.72817488,0.0004,30]
[311005118,1704856763464,-2232.0,0.0004,30]
[311005119,1704856763489,-233.17213221,0.0004,30]
[311005120,1704856763514,-1000.0,0.0004,30]
[311005121,1704856763538,-1000.0,0.0004,30]
[311005122,1704856763562,-1000.0,0.0004,30]
[311005123,1704856763585,-1000.0,0.0004,30]
[311005124,1704856763610,-1000.0,0.0004,30]
[311005125,1704856763634,-1000.0,0.0004,30]
[311005126,1704856763658,-1000.0,0.0004,30]
[311005127,1704856763683,-709.846559,0.0004,30]
[311005128,1704856763750,-3934.15962479,0.00040015,30]
[311005129,1704856763811,-170.0,0.0004043,50]
[311005130,1704856763872,-50000.0,0.00040772,30]
[311005131,1704856763897,-1709.44,0.00040821,30]
[311005132,1704856763922,-1668.58,0.00040821,30]
[311005133,1704856763945,-759.0,0.00040821,30]
[311005134,1704856763971,-608.15,0.00040821,30]
[311005135,1704856763998,-855.18,0.00040821,30]
[311005136,1704856764022,-592.53,0.00040821,30]
[311005137,1704856764049,-602.72,0.00040821,30]
[311005138,1704856764075,-545.42,0.00040821,30]
[311005139,1704856764100,-525.88,0.00040821,30]
[311005140,1704856764126,-573.86,0.00040821,30]
[311005141,1704856764151,-522.97,0.00040821,30]
[311005142,1704856764177,-777.27,0.00040821,30]
[311005143,1704856764202,-436.53,0.00040821,30]
[311005144,1704856764226,-543.27,0.00040821,30]
[311005145,1704856764254,-513.18,0.00040821,30]
[311005146,1704856764279,-924.37,0.00040821,30]
[311005147,1704856764306,-500.0,0.00040821,30]
[311005148,1704856764332,-618.21,0.00040821,30]
[311005149,1704856764357,-548.78,0.00040821,30]
[311005150,1704856764382,-953.18,0.00040821,30]
[311005151,1704856764410,-730.05,0.00040821,30]
[311005152,1704856764437,-1235.16,0.00040821,30]
[311005153,1704856764466,-594.64,0.00040821,30]
[311005154,1704856764490,-1159.64,0.00040821,30]
[311005155,1704856764516,-500.0,0.00040821,30]
[311005156,1704856764542,-670.67,0.00040821,30]
[311005157,1704856764568,-1547.98,0.00040821,30]
[311005158,1704856764593,-507.47,0.00040821,30]
[311005159,1704856764618,-936.36,0.00040821,30]
[311005160,1704856764642,-500.0,0.00040821,30]
[311005161,1704856764668,-416.77628694,0.00040821,30]
[311005162,1704856764692,-904.54,0.00040821,30]
[311005163,1704856764717,-786.23,0.00040821,30]
[311005164,1704856764744,-544.16,0.00040821,30]
[311005165,1704856764768,-641.56,0.00040821,30]
[311005166,1704856764794,-1028.51,0.00040821,30]
[311005167,1704856764819,-868.27,0.00040821,30]
[311005168,1704856764843,-500.0,0.00040821,30]
[311005169,1704856764868,-535.68,0.00040821,30]
[311005170,1704856764893,-1256.88,0.00040821,30]
[311005171,1704856764917,-520.22,0.00040821,30]
[311005172,1704856765203,-689.72,0.00040821,30]
[311005173,1704856765229,-508.13,0.00040821,30]
[311005174,1704856765254,-825.34,0.00040821,30]
[311005175,1704856765279,-746.42,0.00040821,30]
[311005176,1704856765304,-406.5668093,0.00040821,30]
[311005177,1704856765328,-500.0,0.00040821,30]
[311005178,1704856765353,-675.9,0.00040821,30]
[311005179,1704856765378,-851.12,0.00040821,30]
[311005180,1704856765404,-500.0,0.00040821,30]
[311005181,1704856765435,-731.7,0.00040821,30]
[311005182,1704856765462,-535.44,0.00040821,30]
[311005183,1704856765487,-500.0,0.00040821,30]
[311005184,1704856765518,-500.0,0.00040821,30]
[311005185,1704856765542,-829.71,0.00040821,30]
[311005186,1704856765572,-859.15,0.00040821,30]
[311005187,1704856765598,-500.0,0.00040821,30]
[311005188,1704856765623,-761.85,0.00040821,30]
[311005189,1704856765653,-968.6,0.00040821,30]
[311005190,1704856765678,-610.492391,0.00040821,30]
[311005191,1704856765703,-984.7,0.00040821,30]
[311005192,1704856765728,-628.29,0.00040821,30]
[311005193,1704856765754,-534.38,0.00040821,30]
[311005194,1704856765779,-868.08,0.00040821,30]
[311005195,1704856765803,-532.04,0.00040821,30]
[311005196,1704856765829,-580.72,0.00040821,30]
[311005197,1704856765856,-592.74,0.00040821,30]
[311005198,1704856765882,-612.38,0.00040821,30]
[311005199,1704856765907,-732.37,0.00040821,30]
[311005200,1704856765932,-579.83,0.00040821,30]
[311005201,1704856765957,-556.23,0.00040821,30]
[311005203,1704856765982,-1031.73,0.00040821,30]
[311005204,1704856766007,-1571.52,0.00040821,30]
[311005205,1704856766032,-640.19,0.00040821,30]
[311005206,1704856766057,-1761.26,0.00040821,30]
[311005207,1704856766082,-857.62,0.00040821,30]
[311005208,1704856766107,-525.19,0.00040821,30]
[311005209,1704856766133,-708.21,0.00040821,30]
[311005210,1704856766158,-632.64,0.00040821,30]
[311005211,1704856766183,-1095.78,0.00040821,30]
[311005212,1704856766208,-661.93,0.00040821,30]
[311005213,1704856766233,-500.0,0.00040821,30]
[311005214,1704856766262,-500.0,0.00040821,30]
[311005215,1704856766287,-818.95,0.00040821,30]
[311005216,1704856766310,-1320.73,0.00040821,30]
[311005217,1704856766334,-754.41,0.00040821,30]
[311005218,1704856766357,-500.0,0.00040821,30]
[311005219,1704856766379,-1962.14,0.00040821,30]
[311005220,1704856766403,-782.05,0.00040821,30]
[311005221,1704856766429,-1517.45,0.00040821,30]
[311005222,1704856766455,-850.77,0.00040821,30]
[311005223,1704856766479,-653.41,0.00040821,30]
[311005224,1704856766503,-515.60805841,0.00040821,30]
[311005225,1704856766528,-2085.25,0.00040821,30]
[311005226,1704856766551,-584.75,0.00040821,30]
[311005227,1704856766576,-574.64,0.00040821,30]
[311005228,1704856766602,-462.71555136,0.00040821,30]
[311005229,1704856766626,-854.46,0.00040821,30]
[311005230,1704856766651,-775.32,0.00040821,30]
[311005231,1704856766674,-1500.41,0.00040821,30]
[311005232,1704856766700,-588.25,0.00040821,30]
[311005233,1704856766727,-1090.49,0.00040821,30]
[311005234,1704856766752,-1487.98,0.00040821,30]
[311005235,1704856766777,-1775.78,0.00040821,30]
[311005236,1704856766802,-1658.28,0.00040821,30]
[311005237,1704856766827,-610.16,0.00040821,30]
[311005238,1704856766853,-438.12772184,0.00040821,30]
[311005239,1704856766881,-1403.11,0.00040821,30]
[311005240,1704856766905,-728.82,0.00040821,30]
[311005241,1704856766929,-701.32,0.00040821,30]
[311005242,1704856766953,-1072.32,0.00040821,30]
[311005243,1704856766978,-500.0,0.00040821,30]
[311005244,1704856767002,-909.86,0.00040821,30]
[311005245,1704856767195,-846.0,0.00040821,30]
[311005246,1704856767221,-1170.06,0.00040821,30]
[311005247,1704856767245,-700.07,0.00040821,30]
[311005248,1704856767270,-2342.36,0.00040821,30]
[311005249,1704856767294,-563.15,0.00040821,30]
[311005250,1704856767319,-644.35,0.00040821,30]
[311005251,1704856767343,-572.65,0.00040821,30]
[311005252,1704856767366,-669.35,0.00040821,30]
[311005253,1704856767394,-2374.29,0.00040821,30]
[311005254,1704856767421,-4320.86,0.00040821,30]
[311005255,1704856767447,-593.6,0.00040821,30]
[311005256,1704856767473,-500.0,0.00040821,30]
[311005257,1704856767501,-655.33,0.00040821,30]
[311005258,1704856767538,-936.09,0.00040821,30]
[311005259,1704856767568,-1151.09,0.00040821,30]
[311005260,1704856767596,-1877.94,0.00040821,30]
[311005261,1704856767623,-2045.97,0.00040821,30]
[311005262,1704856767651,-638.84,0.00040821,30]
[311005263,1704856767678,-814.3,0.00040821,30]
[311005264,1704856767707,-627.49,0.00040821,30]
[311005265,1704856767732,-1677.12,0.00040821,30]
[311005266,1704856767771,-702.18,0.00040821,30]
[311005267,1704856767796,-530.52,0.00040821,30]
[311005268,1704856767820,-1014.92,0.00040821,30]
[311005269,1704856767846,-1582.75,0.00040821,30]
[311005270,1704856767871,-832.22,0.00040821,30]
[311005271,1704856767895,-500.0,0.00040821,30]
[311005272,1704856767921,-621.69,0.00040821,30]
[311005273,1704856767945,-2037.87,0.00040821,30]
[311005274,1704856767969,-649.85,0.00040821,30]
[311005275,1704856767996,-1092.13,0.00040821,30]
[311005276,1704856768030,-1228.17,0.00040821,30]
[311005277,1704856768058,-500.0,0.00040821,30]
[311005278,1704856768408,-838.33,0.00040821,30]
[311005279,1704856768437,-810.19,0.00040821,30]
[311005280,1704856768461,-617.77,0.00040821,30]
[311005281,1704856768487,-856.65,0.00040821,30]
[311005282,1704856768514,-814.23,0.00040821,30]
[311005283,1704856768538,-830.84,0.00040821,30]
[311005284,1704856768562,-519.08,0.00040821,30]
[311005285,1704856768586,-1798.01,0.00040821,30]
[311005286,1704856768609,-1079.97,0.00040821,30]
[311005287,1704856768633,-1510.85,0.00040821,30]
[311005288,1704856768657,-1124.9,0.00040821,30]
[311005289,1704856768682,-1424.35,0.00040821,30]
[311005290,1704856768706,-1219.87,0.00040821,30]
[311005291,1704856768730,-684.31,0.00040821,30]
[311005292,1704856768757,-1352.44,0.00040821,30]
[311005293,1704856768781,-1339.43,0.00040821,30]
[311005294,1704856768804,-500.0,0.00040821,30]
[311005295,1704856768829,-685.37,0.00040821,30]
[311005296,1704856768853,-1090.56,0.00040821,30]
[311005297,1704856768877,-938.19,0.00040821,30]
[311005298,1704856768900,-584.97,0.00040821,30]
[311005299,1704856768925,-1024.45,0.00040821,30]
[311005300,1704856768949,-1062.08,0.00040821,30]
[311005301,1704856768973,-525.82,0.00040821,30]
[311005302,1704856768997,-592.24,0.00040821,30]
[311005303,1704856769023,-903.19,0.00040821,30]
[311005304,1704856769047,-3038.69,0.00040821,30]
[311005305,1704856769071,-794.92,0.00040821,30]
[311005306,1704856769095,-1536.55,0.00040821,30]
[311005307,1704856769121,-1326.08,0.00040821,30]
[311005308,1704856769144,-715.32,0.00040821,30]
[311005309,1704856769168,-500.0,0.00040821,30]
[311005310,1704856769191,-591.09,0.00040821,30]
[311005311,1704856769218,-1420.22,0.00040821,30]
[311005312,1704856769246,-1635.77,0.00040821,30]
[311005313,1704856769272,-573.41,0.00040821,30]
[311005314,1704856769297,-1246.33,0.00040821,30]
[311005315,1704856769321,-976.7,0.00040821,30]
[311005316,1704856769347,-617.94,0.00040821,30]
[311005317,1704856769371,-1603.37,0.00040821,30]
[311005318,1704856769408,-1628.79,0.00040821,30]
[311005319,1704856769435,-865.72,0.00040821,30]
[311005320,1704856769460,-593.02,0.00040821,30]
[311005321,1704856769485,-563.26,0.00040821,30]
[311005322,1704856769511,-918.43,0.00040821,30]
[311005323,1704856769537,-1612.31,0.00040821,30]
[311005324,1704856769562,-1958.8,0.00040821,30]
[311005325,1704856769587,-500.0,0.00040821,30]
[311005326,1704856769611,-618.93,0.00040821,30]
[311005327,1704856769636,-507.58695549,0.00040821,30]
[311005328,1704856769660,-750.17,0.00040821,30]
[311005329,1704856769684,-668.42,0.00040821,30]
[311005330,1704856769711,-500.0,0.00040821,30]
[311005331,1704856769736,-1575.63,0.00040821,30]
[311005332,1704856769760,-1241.04,0.00040821,30]
[311005333,1704856769785,-540.33,0.00040821,30]
[311005334,1704856769810,-3614.09,0.00040821,30]
[311005335,1704856769834,-712.36,0.00040821,30]
[311005336,1704856769858,-500.0,0.00040821,30]
[311005337,1704856769884,-202.35050494,0.00040821,30]
[311005338,1704856769909,-507.69,0.00040821,30]
[311005339,1704856769935,-727.79,0.00040821,30]
[311005340,1704856769961,-500.0,0.00040821,30]
[311005341,1704856769986,-480.91450002,0.00040821,30]
[311005342,1704856770011,-178.78166106,0.00040821,30]
[311005343,1704856770036,-533.16,0.00040821,30]
[311005344,1704856770062,-1388.86,0.00040821,30]
[311005345,1704856770087,-812.04,0.00040821,30]
[311005346,1704856770114,-787.14,0.00040821,30]
[311005347,1704856770141,-620.83,0.00040821,30]
[311005348,1704856770168,-1465.03,0.00040821,30]
[311005349,1704856770193,-1730.4,0.00040821,30]
[311005350,1704856770218,-784.26,0.00040821,30]
[311005351,1704856770244,-500.0,0.00040821,30]
[311005352,1704856770270,-611.56,0.00040821,30]
[311005353,1704856770294,-1272.26,0.00040821,30]
[311005354,1704856770319,-1435.79,0.00040821,30]
[311005355,1704856770345,-1275.28,0.00040821,30]
[311005356,1704856770370,-621.91,0.00040821,30]
[311005357,1704856770395,-600.97,0.00040821,30]
[311005358,1704856770420,-992.86,0.00040821,30]
[311005359,1704856770444,-1149.29,0.00040821,30]
[311005360,1704856770468,-809.53,0.00040821,30]
[311005361,1704856770493,-1106.99,0.00040821,30]
[311005362,1704856770519,-500.0,0.00040821,30]
[311005363,1704856770543,-570.82,0.00040821,30]
[311005364,1704856770568,-902.85,0.00040821,30]
[311005365,1704856770592,-853.85,0.00040821,30]
[311005366,1704856770616,-684.52,0.00040821,30]
[311005367,1704856770640,-858.97,0.00040821,30]
[311005368,1704856770664,-920.31,0.00040821,30]
[311005369,1704856770690,-1837.21,0.00040821,30]
[311005370,1704856770714,-714.84,0.00040821,30]
[311005371,1704856770738,-1252.68,0.00040821,30]
[311005372,1704856770763,-500.0,0.00040821,30]
[311005373,1704856770787,-753.01,0.00040821,30]
[311005374,1704856770811,-1296.42,0.00040821,30]
[311005375,1704856770836,-1044.85,0.00040821,30]
[311005376,1704856770861,-813.16,0.00040821,30]
[311005377,1704856770886,-848.6,0.00040821,30]
[311005378,1704856770910,-831.85,0.00040821,30]
[311005379,1704856770935,-1868.52,0.00040821,30]
[311005380,1704856770959,-1263.79,0.00040821,30]
[311005381,1704856770985,-778.7,0.00040821,30]
[311005382,1704856771010,-715.76,0.00040821,30]
[311005383,1704856771300,-578.75,0.00040821,30]
[311005384,1704856771324,-516.33,0.00040821,30]
[311005385,1704856771347,-500.0,0.00040821,30]
[311005386,1704856771370,-545.63,0.00040821,30]
[311005387,1704856771393,-1060.99,0.00040821,30]
[311005388,1704856771417,-1566.38,0.00040821,30]
[311005389,1704856771443,-1163.02,0.00040821,30]
[311005390,1704856771466,-1009.01,0.00040821,30]
[311005391,1704856771491,-1252.67,0.00040821,30]
[311005392,1704856771517,-621.33,0.00040821,30]
[311005393,1704856771542,-1954.62,0.00040821,30]
[311005394,1704856771566,-1388.66,0.00040821,30]
[311005395,1704856771589,-626.68,0.00040821,30]
[311005396,1704856771613,-522.92,0.00040821,30]
[311005397,1704856771636,-523.34,0.00040821,30]
[311005398,1704856771659,-1102.37,0.00040821,30]
[311005399,1704856771682,-537.21,0.00040821,30]
[311005400,1704856771705,-549.73,0.00040821,30]
[311005401,1704856771729,-1291.56,0.00040821,30]
[311005402,1704856771753,-674.69,0.00040821,30]
[311005403,1704856771776,-1070.28,0.00040821,30]
[311005404,1704856771800,-1352.52,0.00040821,30]
[311005405,1704856771824,-648.48,0.00040821,30]
[311005406,1704856771847,-976.48,0.00040821,30]
[311005407,1704856771870,-500.0,0.00040821,30]
[311005408,1704856771893,-1055.46,0.00040821,30]
[311005409,1704856771917,-1261.64,0.00040821,30]
[311005410,1704856771941,-1071.34,0.00040821,30]
[311005411,1704856771965,-617.63,0.00040821,30]
[311005412,1704856771988,-632.63,0.00040821,30]
[311005413,1704856772013,-2016.5,0.00040821,30]
[311005414,1704856772037,-1365.96,0.00040821,30]
[311005415,1704856772063,-587.35,0.00040821,30]
[311005416,1704856772086,-1380.88,0.00040821,30]
[311005417,1704856772110,-732.24,0.00040821,30]